bitfinex/quotes_SOLUSD_20220307
["timestamp","ask_amount","ask_price","bid_price","bid_amount"]
[1646666825292,0.25,84.753,84.711,5.9]
[1646666825493,1.54401917,84.748,84.71,17.7089]
[1646666825691,1.54401917,84.747,84.71,17.7089]
[1646666826393,1.54401917,84.748,84.71,17.7089]
[1646666827594,1.54401917,84.752,84.711,6.151]
[1646666827794,1.54401917,84.752,84.72,17.7064]
[1646666827994,1.54401917,84.752,84.721,28.38085585]
[1646666828797,1.54401917,84.757,84.73,17.7049]
[1646666829497,3.12893971,84.781,84.731,226.7]
[1646666829795,3.12893971,84.796,84.732,0.25]
[1646666829995,6.0,84.795,84.74,17.7017]
[1646666830197,6.41289725,84.794,84.741,6.148]
[1646666830495,6.41289725,84.798,84.742,37.94728575]
[1646666830696,6.41289725,84.793,84.743,116.95]
[1646666830895,3.12893971,84.807,84.745,186.76]
[1646666831102,4.62275939,84.831,84.751,116.7]
[1646666831103,3.12893971,84.81,84.751,116.7]
[1646666831296,3.12893971,84.814,84.752,0.25]
[1646666831495,3.12893971,84.814,84.754,116.7]
[1646666831696,3.12893971,84.816,84.756,116.7]
[1646666831896,6.41251297,84.827,84.755,28.63085585]
[1646666831897,3.12893971,84.818,84.758,116.7]
[1646666832098,3.12893971,84.82,84.761,116.7]
[1646666832297,3.12893971,84.828,84.763,116.7]
[1646666832497,3.12893971,84.828,84.765,116.7]
[1646666832797,3.12893971,84.834,84.767,116.7]
[1646666832999,0.25,84.833,84.769,116.7]
[1646666833197,6.41098967,84.832,84.77,0.25]
[1646666833398,0.25,84.831,84.77,0.25]
[1646666833799,6.41098967,84.83,84.77,0.25]
[1646666833999,0.25,84.829,84.77,0.25]
[1646666834401,6.41098967,84.828,84.77,0.25]
[1646666834601,0.25,84.827,84.768,37.94728575]
[1646666834800,3.12893971,84.824,84.768,37.94728575]
[1646666835001,0.25,84.823,84.769,0.25]
[1646666835200,6.41098967,84.822,84.769,0.25]
[1646666835402,0.25,84.821,84.769,0.25]
[1646666836700,0.25,84.829,84.769,0.25]
[1646666836902,6.41104997,84.828,84.769,0.25]
[1646666837102,6.41104997,84.828,84.768,37.94728575]
[1646666837103,17.698,84.82,84.758,23.9123]
[1646666837301,12.66104997,84.819,84.758,23.9123]
[1646666837501,6.41104997,84.818,84.758,23.9123]
[1646666837801,3.12893971,84.812,84.758,23.9123]
[1646666838006,15.27593971,84.811,84.758,23.9123]
[1646666838202,15.27593971,84.811,84.759,40.3531194]
[1646666838203,3.12893971,84.809,84.759,40.3531194]
[1646666838403,12.147,84.808,84.759,40.3531194]
[1646666838605,6.41104997,84.807,84.759,40.3531194]
[1646666838805,6.25,84.806,84.759,40.3531194]
[1646666839003,6.41104997,84.805,84.759,40.3531194]
[1646666839204,6.25,84.804,84.759,40.3531194]
[1646666839603,17.7022,84.8,84.734,22.6577]
[1646666839804,6.25,84.799,84.734,22.6577]
[1646666840004,6.41104997,84.798,84.734,22.6577]
[1646666840203,6.25,84.797,84.734,22.6577]
[1646666840604,36.17439565,84.796,84.753,37.93545942]
[1646666840806,6.25,84.795,84.753,37.93545942]
[1646666841206,17.7049,84.79,84.753,37.93545942]
[1646666841406,0.25,84.789,84.753,37.93545942]
[1646666843508,0.25,84.789,84.734,22.6577]
[1646666844509,5.898,84.788,84.734,22.6577]
[1646666844707,0.25,84.787,84.735,42.21064721]
[1646666844909,0.25,84.787,84.736,0.25]
[1646666845108,6.0,84.795,84.736,0.25]
[1646666845309,0.25,84.794,84.736,0.25]
[1646666846008,17.7041,84.79,84.736,0.25]
[1646666846208,0.25,84.789,84.736,0.25]
[1646666847209,11.898,84.808,84.736,0.25]
[1646666848010,14.73413526,84.808,84.736,0.25]
[1646666848210,17.7019,84.8,84.736,0.25]
[1646666848412,3.12893971,84.815,84.741,116.7]
[1646666848612,5.898,84.819,84.742,0.25]
[1646666848811,3.12893971,84.828,84.743,116.7]
[1646666849011,3.12893971,84.828,84.744,0.25]
[1646666849214,52.4507959,84.829,84.745,116.7]
[1646666849412,6.41252539,84.828,84.746,0.25]
[1646666849613,6.0,84.827,84.746,0.25]
[1646666849813,6.41252539,84.826,84.746,0.25]
[1646666850012,11.897,84.825,84.746,0.25]
[1646666850215,0.25,84.824,84.746,6.25]
[1646666850413,5.897,84.823,84.746,6.25]
[1646666850615,5.897,84.823,84.746,0.25]
[1646666850616,6.25,84.822,84.746,0.25]
[1646666850813,5.897,84.821,84.743,116.7]
[1646666851014,0.25,84.82,84.751,116.7]
[1646666851214,0.25,84.82,84.753,116.7]
[1646666851436,0.25,84.82,84.754,0.25]
[1646666851614,0.25,84.82,84.755,116.7]
[1646666851818,0.25,84.82,84.757,116.7]
[1646666852015,0.25,84.827,84.758,0.25]
[1646666852514,0.25,84.828,84.758,0.25]
[1646666853218,5.896,84.827,84.758,0.25]
[1646666853416,6.25,84.826,84.758,0.25]
[1646666853616,5.896,84.825,84.758,0.25]
[1646666853817,0.25,84.824,84.761,116.7]
[1646666854017,0.25,84.824,84.763,116.7]
[1646666854220,5.896,84.839,84.765,186.76]
[1646666854418,3.12893971,84.851,84.767,116.7]
[1646666854615,3.12893971,84.851,84.769,116.7]
[1646666854816,3.12893971,84.852,84.771,116.7]
[1646666855016,3.12893971,84.852,84.773,116.7]
[1646666855215,3.12893971,84.852,84.775,186.76]
[1646666855417,3.12893971,84.852,84.777,116.7]
[1646666855615,3.12893971,84.859,84.778,0.25]
[1646666855814,3.12893971,84.86,84.779,116.7]
[1646666856015,3.12893971,84.857,84.781,116.7]
[1646666856215,6.0,84.856,84.783,116.7]
[1646666856415,6.41023163,84.855,84.785,186.76]
[1646666856615,6.41023163,84.855,84.787,116.7]
[1646666856815,3.12893971,84.859,84.788,0.25]
[1646666857117,20.81863971,84.86,84.788,0.25]
[1646666857317,6.41023163,84.859,84.788,0.25]
[1646666857717,3.12893971,84.86,84.795,116.7]
[1646666857916,6.41023163,84.859,84.797,186.76]
[1646666858216,5.894,84.867,84.799,186.76]
[1646666858514,5.894,84.867,84.798,6.25]
[1646666858515,6.0,84.866,84.811,116.7]
[1646666858716,6.0,84.874,84.812,0.25]
[1646666858944,6.40769382,84.873,84.812,0.25]
[1646666859115,6.40769382,84.874,84.812,0.25]
[1646666859315,6.0,84.873,84.812,0.25]
[1646666859516,6.40769382,84.872,84.812,0.25]
[1646666859717,6.0,84.871,84.811,116.7]
[1646666859915,6.0,84.871,84.812,0.25]
[1646666860315,6.0,84.878,84.812,0.25]
[1646666860517,6.40741867,84.877,84.812,0.25]
[1646666860716,6.0,84.876,84.812,116.95]
[1646666861317,6.0,84.882,84.812,116.95]
[1646666861517,6.40800155,84.881,84.812,116.95]
[1646666861718,6.0,84.88,84.812,116.95]
[1646666861916,6.40800155,84.879,84.812,116.95]
[1646666862117,6.40800155,84.879,84.826,186.76]
[1646666862118,6.0,84.878,84.826,186.76]
[1646666862320,6.0,84.878,84.828,116.7]
[1646666862518,6.0,84.878,84.829,6.142]
[1646666862721,6.0,84.894,84.83,0.25]
[1646666862917,6.0,84.894,84.831,5.891]
[1646666863118,17.6837,84.89,84.832,0.25]
[1646666863318,12.141,84.889,84.83,29.75320687]
[1646666863520,6.25,84.889,84.831,5.892]
[1646666863721,6.25,84.889,84.832,0.25]
[1646666865920,6.25,84.889,84.834,116.7]
[1646666866121,0.25,84.889,84.835,6.141]
[1646666866320,0.25,84.898,84.835,6.141]
[1646666866521,6.40657459,84.897,84.835,6.141]
[1646666866721,44.83242308,84.896,84.835,6.141]
[1646666868522,44.83242308,84.896,84.835,23.8637]
[1646666869124,17.6831,84.89,84.835,23.8637]
[1646666869423,6.25,84.889,84.835,23.8637]
[1646666869624,6.25,84.889,84.835,5.891]
[1646666869824,5.891,84.888,84.83,29.50320687]
[1646666870026,6.25,84.887,84.83,29.50320687]
[1646666870225,17.6856,84.88,84.83,29.50320687]
[1646666870427,6.25,84.879,84.83,29.50320687]
[1646666870828,6.25,84.879,84.831,116.7]
[1646666871025,0.25,84.879,84.831,116.7]
[1646666871226,0.25,84.879,84.832,0.25]
[1646666871427,0.25,84.879,84.834,116.7]
[1646666871628,0.25,84.9,84.835,6.142]
[1646666871827,6.40580057,84.899,84.835,6.142]
[1646666872027,6.25,84.898,84.835,6.142]
[1646666872227,6.25,84.898,84.836,116.7]
[1646666872427,6.0,84.898,84.838,116.7]
[1646666872629,6.0,84.909,84.839,0.25]
[1646666872827,6.40506,84.908,84.839,0.25]
[1646666873227,6.40506,84.909,84.839,0.25]
[1646666873628,3.12893971,84.916,84.841,116.7]
[1646666873828,37.10129565,84.909,84.842,0.25]
[1646666874027,3.12893971,84.919,84.842,0.25]
[1646666874427,5.89,84.909,84.842,0.25]
[1646666874727,12.65471656,84.908,84.84,0.25]
[1646666874926,6.25,84.908,84.839,0.25]
[1646666875127,0.25,84.908,84.839,0.25]
[1646666875329,0.25,84.908,84.84,17.6787]
[1646666875529,0.25,84.908,84.841,116.95]
[1646666875730,0.25,84.908,84.842,0.25]
[1646666875931,0.25,84.913,84.842,0.25]
[1646666876227,6.40458873,84.912,84.847,116.7]
[1646666876427,6.25,84.911,84.849,116.7]
[1646666876627,6.25,84.911,84.851,116.7]
[1646666876628,6.0,84.911,84.851,116.7]
[1646666876828,47.30832859,84.922,84.852,0.25]
[1646666877028,6.65368095,84.921,84.851,116.7]
[1646666877230,12.40368095,84.92,84.848,36.82493473]
[1646666877431,6.65368095,84.919,84.848,36.82493473]
[1646666877632,38.66697922,84.909,84.848,36.82493473]
[1646666877833,3.12893971,84.902,84.848,36.82493473]
[1646666878031,6.25,84.901,84.848,36.82493473]
[1646666878331,9.53262066,84.9,84.848,36.82493473]
[1646666878530,15.78262066,84.899,84.848,36.82493473]
[1646666878731,17.6855,84.89,84.848,36.82493473]
[1646666879033,6.25,84.889,84.848,36.82493473]
[1646666879231,6.25,84.889,84.82,41.7192]
[1646666879431,6.40561924,84.888,84.82,24.0365]
[1646666879632,17.6853,84.88,84.82,24.0365]
[1646666879831,0.25,84.879,84.82,24.0365]
[1646666880232,0.25,84.879,84.838,38.89507807]
[1646666880736,0.25,84.885,84.838,38.89507807]
[1646666880933,6.40570983,84.884,84.838,38.89507807]
[1646666881133,0.25,84.883,84.838,38.89507807]
[1646666881332,6.40570983,84.882,84.838,38.89507807]
[1646666881553,0.25,84.881,84.838,38.89507807]
[1646666881752,6.40570983,84.88,84.838,38.89507807]
[1646666881952,0.25,84.879,84.838,38.89507807]
[1646666882353,39.85658389,84.879,84.838,38.89507807]
[1646666882755,6.40474112,84.878,84.838,38.89507807]
[1646666882956,6.40474112,84.878,84.82,24.0365]
[1646666882957,0.25,84.877,84.82,24.0365]
[1646666883354,6.40474112,84.876,84.82,24.0365]
[1646666883555,0.25,84.875,84.82,24.0365]
[1646666883754,6.40474112,84.874,84.82,24.0365]
[1646666884056,0.25,84.873,84.82,24.0365]
[1646666884256,6.40474112,84.872,84.82,24.0365]
[1646666884454,0.25,84.871,84.838,40.7596531]
[1646666885057,6.40474112,84.87,84.82,24.0365]
[1646666885255,0.25,84.869,84.82,24.0365]
[1646666886156,0.25,84.869,84.835,44.20952773]
[1646666886355,6.40476454,84.868,84.82,24.0365]
[1646666886556,0.25,84.867,84.82,24.0365]
[1646666886955,6.40476454,84.866,84.82,24.0365]
[1646666887156,0.25,84.865,84.82,24.0365]
[1646666887357,35.58515002,84.865,84.825,39.97924602]
[1646666887755,0.25,84.865,84.825,39.97924602]
[1646666888258,0.25,84.871,84.825,39.97924602]
[1646666888656,6.4055413,84.87,84.825,39.97924602]
[1646666888856,0.25,84.869,84.825,39.97924602]
[1646666889266,6.4055413,84.868,84.82,24.0365]
[1646666889473,17.6893,84.86,84.76,117.7113]
[1646666889668,6.4055413,84.859,84.74,17.0]
[1646666889867,133.7,84.85,84.74,17.6744]
[1646666890066,3.12893971,84.845,84.737,100.0]
[1646666890266,3.12893971,84.837,84.738,41.99195146]
[1646666890467,3.12893971,84.826,84.738,41.99195146]
[1646666890771,17.7052,84.82,84.738,41.99195146]
[1646666890967,6.25,84.819,84.739,116.7]
[1646666891167,6.40903191,84.818,84.739,116.7]
[1646666891368,6.25,84.817,84.739,116.7]
[1646666891570,5.897,84.816,84.739,116.7]
[1646666891770,5.897,84.816,84.741,116.7]
[1646666891771,6.25,84.815,84.741,116.7]
[1646666891971,17.7016,84.81,84.75,17.6983]
[1646666892173,6.147,84.809,84.751,24.58619014]
[1646666892373,6.147,84.809,84.752,116.7]
[1646666892571,0.25,84.809,84.753,0.25]
[1646666892773,0.25,84.809,84.754,116.7]
[1646666892972,0.25,84.809,84.755,0.25]
[1646666893172,0.25,84.809,84.756,116.7]
[1646666893374,6.0,84.844,84.757,0.25]
[1646666893572,5.896,84.843,84.757,0.25]
[1646666893773,6.0,84.842,84.757,6.25]
[1646666894273,17.6961,84.83,84.76,17.697]
[1646666894474,17.6961,84.83,84.761,6.0]
[1646666894673,6.0,84.829,84.761,6.0]
[1646666894873,5.896,84.828,84.761,6.0]
[1646666895073,6.0,84.827,84.759,6.0]
[1646666895274,6.146,84.826,84.759,6.0]
[1646666895475,6.0,84.825,84.754,122.7]
[1646666895674,0.25,84.824,84.754,122.7]
[1646666895876,0.25,84.824,84.755,0.25]
[1646666896575,0.25,84.824,84.771,41.71969844]
[1646666896874,5.896,84.823,84.771,41.71969844]
[1646666897076,43.26085392,84.822,84.771,41.71969844]
[1646666897375,5.896,84.821,84.771,41.71969844]
[1646666897575,0.25,84.82,84.771,41.71969844]
[1646666897775,5.896,84.819,84.771,41.71969844]
[1646666897975,6.25,84.818,84.771,41.71969844]
[1646666898175,6.25,84.82,84.771,41.71969844]
[1646666898379,6.25,84.82,84.755,0.25]
[1646666898380,6.0,84.817,84.755,0.25]
[1646666898576,6.147,84.816,84.753,0.25]
[1646666898777,6.0,84.815,84.753,0.25]
[1646666898977,6.147,84.814,84.753,0.25]
[1646666899278,6.0,84.813,84.753,48.1287057]
[1646666899477,6.147,84.812,84.753,48.1287057]
[1646666899678,6.0,84.811,84.753,48.1287057]
[1646666899879,6.147,84.81,84.753,48.1287057]
[1646666900078,6.0,84.809,84.76,17.699]
[1646666900278,5.897,84.819,84.761,0.25]
[1646666900479,6.0,84.818,84.761,0.25]
[1646666900880,6.0,84.818,84.762,0.13868642]
[1646666901282,44.2473775,84.847,84.762,116.7]
[1646666901283,6.0,84.846,84.762,116.7]
[1646666901478,44.2473775,84.847,84.764,116.7]
[1646666901678,0.25,84.846,84.77,17.6944]
[1646666901878,0.25,84.846,84.771,18.6994359]
[1646666902079,0.25,84.846,84.771,18.4494359]
[1646666902284,0.25,84.846,84.773,70.06]
[1646666902480,24.9544,84.859,84.777,0.24060021]
[1646666902682,24.9544,84.859,84.779,0.24060021]
[1646666902884,5.894,84.869,84.781,0.24060021]
[1646666903081,48.4787,84.898,84.781,0.24060021]
[1646666903082,5.894,84.875,84.8,17.6867]
[1646666903282,5.893,84.877,84.803,0.24060021]
[1646666903488,11.893,84.893,84.806,186.76]
[1646666903684,6.0,84.893,84.809,0.24060021]
[1646666903883,6.0,84.912,84.811,0.24060021]
[1646666904083,5.891,84.911,84.821,116.7]
[1646666904285,6.0,84.91,84.823,116.7]
[1646666904488,5.891,84.909,84.825,116.7]
[1646666904688,5.891,84.909,84.83,70.06]
[1646666904886,50.84273971,84.922,84.837,116.7]
[1646666905086,3.12893971,84.928,84.847,116.9501234]
[1646666905285,6.40091951,84.928,84.849,116.7]
[1646666905487,3.12893971,84.936,84.871,39.24146357]
[1646666905687,3.12893971,84.942,84.872,0.25]
[1646666905887,3.12893971,84.946,84.872,9.27]
[1646666906089,106.4004368,84.953,84.872,9.27]
[1646666906090,12.138,84.945,84.872,9.27]
[1646666906288,6.4004368,84.944,84.872,9.27]
[1646666906490,12.138,84.943,84.872,9.27]
[1646666906690,6.4004368,84.942,84.891,27.08667803]
[1646666906988,11.388,84.941,84.891,27.08667803]
[1646666908211,0.25,84.94,84.891,27.08667803]
[1646666908409,5.888,84.939,84.891,27.08667803]
[1646666908612,6.25,84.938,84.891,27.08667803]
[1646666909211,6.0,84.937,84.891,27.08667803]
[1646666909412,0.25,84.936,84.891,27.08667803]
[1646666910013,0.25,84.936,84.833,116.7]
[1646666910219,6.18947501,84.935,84.863,6.0]
[1646666910413,6.25,84.934,84.848,17.7933]
[1646666910714,6.29251622,84.933,84.826,17.3179]
[1646666910916,0.40351622,84.929,84.83,58.9289]
[1646666911117,5.889,84.928,84.863,42.2639881]
[1646666911313,6.25,84.927,84.864,0.25]
[1646666911917,0.25,84.927,84.864,0.25]
[1646666912514,0.25,84.938,84.864,0.25]
[1646666912714,0.25,84.947,84.864,0.25]
[1646666912915,6.40131363,84.946,84.864,0.25]
[1646666913116,6.25,84.945,84.87,17.6763]
[1646666913315,6.25,84.944,84.871,0.25]
[1646666913515,0.25,84.948,84.871,0.25]
[1646666913916,5.888,84.947,84.871,0.25]
[1646666914116,6.0,84.946,84.871,0.25]
[1646666914319,17.6742,84.94,84.87,17.676]
[1646666914516,45.63883335,84.938,84.871,0.25]
[1646666914716,11.888,84.937,84.871,0.25]
[1646666915117,2.83613526,84.936,84.871,0.25]
[1646666915317,12.139,84.935,84.87,17.676]
[1646666915622,0.63864812,84.928,84.826,17.3179]
[1646666915817,0.63864812,84.926,84.828,49.2545]
[1646666916017,6.88864812,84.926,84.828,49.2545]
[1646666916222,0.63864812,84.924,84.828,49.2545]
[1646666916420,17.6807,84.91,84.84,17.6826]
[1646666916716,46.60807956,84.908,84.841,6.141]
[1646666916921,6.25,84.907,84.841,6.141]
[1646666917318,6.25,84.907,84.842,6.0]
[1646666917519,6.25,84.907,84.85,17.6807]
[1646666917719,6.0,84.906,84.851,0.25]
[1646666917920,6.0,84.919,84.851,0.25]
[1646666918119,0.25,84.918,84.853,116.7]
[1646666918319,0.25,84.918,84.854,128.84]
[1646666918521,0.25,84.918,84.86,17.6759]
[1646666918722,0.25,84.918,84.861,51.63147123]
[1646666918919,0.25,84.918,84.862,47.3807]
[1646666919121,0.25,84.918,84.863,12.139]
[1646666919320,6.139,84.942,84.863,12.139]
[1646666919520,6.0,84.941,84.863,6.139]
[1646666919720,6.139,84.94,84.863,6.139]
[1646666919922,6.139,84.94,84.871,116.7]
[1646666920121,0.25,84.94,84.872,0.25]
[1646666920324,0.25,84.94,84.873,5.888]
[1646666920523,0.25,84.94,84.861,39.49147123]
[1646666920724,2.83613526,84.939,84.861,39.49147123]
[1646666920924,0.76267669,84.938,84.874,26.83667037]
[1646666921126,116.7,84.937,84.874,26.83667037]
[1646666921329,17.6829,84.92,84.874,26.83667037]
[1646666921524,42.89576842,84.918,84.874,26.83667037]
[1646666921725,12.139,84.917,84.874,26.83667037]
[1646666922527,12.139,84.917,84.83,46.704]
[1646666922724,0.17138766,84.909,84.83,46.704]
[1646666922925,6.42138766,84.909,84.83,46.704]
[1646666923125,0.17138766,84.916,84.83,46.704]
[1646666923327,5.89,84.915,84.83,46.704]
[1646666923527,0.17212255,84.913,84.855,48.04132371]
[1646666923728,17.6821,84.9,84.855,48.04132371]
[1646666923932,6.25,84.899,84.855,48.04132371]
[1646666924529,0.25,84.899,84.855,48.04132371]
[1646666925129,6.14,84.912,84.855,48.04132371]
[1646666925429,6.0,84.911,84.855,48.04132371]
[1646666925630,6.14,84.91,84.855,48.04132371]
[1646666925833,6.0,84.909,84.855,48.04132371]
[1646666926029,0.25,84.908,84.855,48.04132371]
[1646666926229,61.24903745,84.91,84.855,48.04132371]
[1646666926458,11.89,84.909,84.855,48.04132371]
[1646666926630,0.25,84.908,84.855,48.04132371]
[1646666926831,5.89,84.907,84.855,48.04132371]
[1646666927031,6.25,84.906,84.855,48.04132371]
[1646666927231,17.6816,84.9,84.855,48.04132371]
[1646666927432,6.25,84.899,84.855,48.04132371]
[1646666928043,0.25,84.899,84.855,48.04132371]
[1646666928634,0.25,84.908,84.855,48.04132371]
[1646666929238,0.25,84.915,84.855,48.04132371]
[1646666929735,6.40212024,84.914,84.855,48.04132371]
[1646666929934,6.25,84.913,84.855,48.04132371]
[1646666930137,17.6794,84.91,84.855,48.04132371]
[1646666930336,6.25,84.909,84.855,48.04132371]
[1646666930535,48.14290236,84.906,84.855,48.04132371]
[1646666930736,0.43654708,84.899,84.855,48.04132371]
[1646666930938,0.68654708,84.899,84.855,48.04132371]
[1646666931140,17.6869,84.89,84.855,48.04132371]
[1646666931335,0.43654708,84.888,84.855,48.04132371]
[1646666931541,6.25,84.889,84.855,48.04132371]
[1646666931737,0.25,84.889,84.855,48.04132371]
[1646666931936,0.43654708,84.888,84.855,48.04132371]
[1646666932337,6.25,84.895,84.855,48.04132371]
[1646666932535,12.29414422,84.894,84.855,48.04132371]
[1646666932736,17.6862,84.88,84.855,48.04132371]
[1646666933035,6.25,84.879,84.855,48.04132371]
[1646666933535,6.25,84.879,84.83,64.3888]
[1646666933735,17.6877,84.87,84.82,17.6867]
[1646666933959,6.25,84.869,84.82,17.6867]
[1646666934636,0.25,84.869,84.82,17.6867]
[1646666935039,6.25,84.885,84.82,17.6867]
[1646666935237,12.29559399,84.884,84.82,17.6867]
[1646666935437,12.65359399,84.883,84.821,46.3792475]
[1646666935637,5.892,84.882,84.821,46.3792475]
[1646666935839,6.25,84.881,84.822,0.25]
[1646666936137,23.5775,84.88,84.822,0.25]
[1646666936336,6.25,84.879,84.822,0.25]
[1646666936538,5.892,84.878,84.822,0.25]
[1646666936742,6.25,84.877,84.822,0.25]
[1646666936941,46.82211944,84.876,84.822,0.25]
[1646666937140,6.25,84.875,84.822,0.25]
[1646666937339,17.6876,84.87,84.822,0.25]
[1646666937539,6.25,84.869,84.822,0.25]
[1646666941968,144.91082908,84.919,84.83,17.684]
[1646666941969,6.0,84.887,84.83,17.684]
[1646666942171,9.02193971,84.903,84.831,0.25]
[1646666942369,6.40219761,84.902,84.832,0.33084989]
[1646666942666,5.891,84.901,84.832,0.33084989]
[1646666942866,6.40219761,84.9,84.834,13.6988941]
[1646666943067,6.40219761,84.9,84.835,0.25]
[1646666943267,6.25,84.899,84.835,0.25]
[1646666943566,6.40219761,84.898,84.835,0.25]
[1646666943766,6.25,84.897,84.835,0.25]
[1646666944066,17.6862,84.88,84.834,13.6988941]
[1646666944267,6.25,84.879,84.834,13.6988941]
[1646666944870,0.25,84.879,84.834,13.6988941]
[1646666945070,17.6896,84.87,84.834,13.6988941]
[1646666945268,6.25,84.869,84.834,13.6988941]
[1646666946072,0.25,84.869,84.834,13.6988941]
[1646666946271,6.25,84.869,84.834,13.6988941]
[1646666946470,0.25,84.869,84.834,13.6988941]
[1646666946671,0.25,84.878,84.834,13.6988941]
[1646666947473,17.6876,84.87,84.834,13.6988941]
[1646666947674,6.25,84.869,84.834,13.6988941]
[1646666947874,6.25,84.869,84.835,6.0]
[1646666948475,0.25,84.869,84.835,6.0]
[1646666948974,6.0,84.886,84.835,6.0]
[1646666949175,17.6857,84.88,84.835,6.0]
[1646666949376,6.25,84.879,84.835,6.0]
[1646666949578,1.55696707,84.868,84.835,6.0]
[1646666949775,6.25,84.867,84.834,31.8079941]
[1646666950177,0.25,84.867,84.834,31.8079941]
[1646666950376,7.80696707,84.867,84.834,31.8079941]
[1646666950876,1.80696707,84.867,84.834,31.8079941]
[1646666951476,1.55696707,84.866,84.834,31.8079941]
[1646666951677,0.25,84.865,84.834,31.8079941]
[1646666952080,1.55696707,84.866,84.834,31.8079941]
[1646666952279,11.62275939,84.914,84.835,0.25]
[1646666952280,1.55696707,84.872,84.835,0.25]
[1646666952481,1.55815831,84.882,84.835,0.25]
[1646666952680,3.12893971,84.91,84.835,0.25]
[1646666952881,3.12893971,84.911,84.835,23.3684]
[1646666953079,3.12893971,84.912,84.835,23.3684]
[1646666953280,3.12893971,84.911,84.835,23.3684]
[1646666953483,3.12893971,84.917,84.841,116.7]
[1646666953682,9.53037911,84.917,84.843,116.7]
[1646666953981,6.4014394,84.917,84.844,122.95]
[1646666954182,6.4014394,84.916,84.845,0.25]
[1646666954381,6.0,84.916,84.86,17.6765]
[1646666954584,6.4014394,84.915,84.861,43.21504151]
[1646666954781,6.0,84.914,84.861,43.21504151]
[1646666955182,6.4014394,84.913,84.861,43.21504151]
[1646666955381,6.0,84.912,84.861,43.21504151]
[1646666955582,0.25,84.911,84.861,43.21504151]
[1646666955782,0.25,84.911,84.87,17.6765]
[1646666956182,0.25,84.918,84.87,17.6765]
[1646666956382,6.40140433,84.917,84.87,17.6765]
[1646666956582,6.25,84.916,84.87,17.6765]
[1646666956783,6.40140433,84.915,84.87,17.6765]
[1646666956983,0.25,84.914,84.87,17.6765]
[1646666958185,0.25,84.919,84.87,17.6765]
[1646666958385,0.25,84.919,84.871,0.25]
[1646666958587,6.25,84.921,84.88,17.6745]
[1646666958787,0.25,84.921,84.881,0.25]
[1646666958987,3.12893971,84.937,84.881,0.25]
[1646666959186,3.12893971,84.938,84.881,0.25]
[1646666959386,6.0,84.937,84.881,0.25]
[1646666959792,6.0,84.937,84.87,116.7]
[1646666959989,5.889,84.944,84.891,14.47915887]
[1646666960219,3.12893971,84.949,84.892,0.25]
[1646666960387,6.0,84.948,84.892,0.25]
[1646666960592,6.0,84.955,84.892,24.9665]
[1646666960787,6.39965679,84.954,84.892,24.9665]
[1646666960988,6.0,84.953,84.9,17.6689]
[1646666961192,3.12893971,84.963,84.902,110.0]
[1646666961392,26.9232712,84.989,84.902,110.0]
[1646666961393,3.12893971,84.969,84.903,116.95]